bitfinex/quotes_ETHUSD_20250903
["timestamp","ask_amount","ask_price","bid_price","bid_amount"]
[1756909377070,0.0012,4439.1,4438.8,2.25286113]
[1756909377269,0.0012,4439.1,4439.0,2.25275963]
[1756909377769,0.0012,4439.1,4439.0,3.01545963]
[1756909378972,0.0012,4439.1,4439.0,7.01145963]
[1756909380315,1e-08,4439.2,4439.1,2.25270888]
[1756909380526,1e-08,4439.8,4439.7,2.25240444]
[1756909380675,1e-08,4439.8,4439.7,6.66082257]
[1756909380874,1e-08,4439.8,4439.7,2.37542257]
[1756909381102,1e-08,4439.8,4439.7,6.24740444]
[1756909381318,0.12590001,4439.8,4439.7,6.24740444]
[1756909381525,1.73710001,4439.8,4439.7,2.25240444]
[1756909381921,0.12590001,4439.8,4439.7,2.25240444]
[1756909382232,1e-08,4439.8,4439.7,2.25240444]
[1756909382529,1e-08,4439.8,4439.7,6.24740444]
[1756909382688,1e-08,4439.8,4439.7,6.53780444]
[1756909382890,1e-08,4439.8,4439.7,7.85433249]
[1756909383492,1e-08,4439.8,4439.7,9.51863249]
[1756909383918,1e-08,4439.8,4439.7,9.64166151]
[1756909386011,1e-08,4439.8,4439.7,7.97736151]
[1756909387225,1e-08,4439.8,4439.7,10.54646151]
[1756909387428,0.002,4440.0,4439.9,3.04430297]
[1756909387723,0.002,4440.0,4439.9,26.79835083]
[1756909387902,0.002,4440.0,4439.9,28.73052781]
[1756909388229,0.002,4440.0,4439.9,29.16802781]
[1756909388694,0.027,4441.8,4440.0,3.792]
[1756909388894,0.027,4441.8,4441.7,2.25139023]
[1756909389094,0.027,4441.8,4441.7,2.71295552]
[1756909389312,0.027,4441.8,4441.7,3.11615552]
[1756909389518,0.027,4441.8,4441.7,3.55365552]
[1756909389927,0.027,4441.8,4441.7,3.11615552]
[1756909390305,0.027,4441.8,4441.7,2.82575552]
[1756909390496,0.1529,4441.8,4441.7,6.81775552]
[1756909390706,1.7641,4441.8,4441.7,2.25139023]
[1756909391001,0.027,4441.8,4441.7,6.53279023]
[1756909391200,0.027,4441.8,4441.7,6.97029023]
[1756909391443,0.027,4441.8,4441.7,3.47524552]
[1756909391741,0.027,4441.8,4441.7,6.24239023]
[1756909392631,0.027,4441.8,4441.7,2.25139023]
[1756909392834,2.2168,4441.8,4441.7,2.25139023]
[1756909393538,0.027,4441.8,4441.7,2.25139023]
[1756909393904,0.1562,4441.8,4441.7,2.25139023]
[1756909394231,0.027,4441.8,4441.7,2.25139023]
[1756909395399,0.027,4441.8,4441.7,6.53179023]
[1756909395702,0.027,4441.8,4441.7,6.24139023]
[1756909396824,0.1529,4441.8,4441.7,2.25139023]
[1756909397022,1.7641,4441.8,4441.7,6.24039023]
[1756909397238,1.7641,4441.8,4441.7,2.25139023]
[1756909397435,2.2168,4441.8,4441.0,1.732]
[1756909397962,0.4527,4441.7,4441.2,2.25162945]
[1756909398117,0.027,4441.8,4441.3,0.02251593]
[1756909398430,0.0262,4441.8,4441.2,3.988]
[1756909398633,0.0262,4441.8,4441.6,2.25140572]
[1756909398833,1.6374,4441.8,4441.3,3.988]
[1756909399036,1.6374,4441.8,4439.7,3.0]
[1756909399037,1.7371,4441.7,4439.7,3.0]
[1756909399239,2.54834917,4441.4,4440.6,2.2518997]
[1756909399420,0.2968,4441.4,4440.7,2.25185986]
[1756909399778,1.8947,4441.3,4440.8,2.25184209]
[1756909400061,0.2967,4440.9,4440.7,2.25189458]
[1756909400212,0.2967,4440.9,4440.2,3.988]
[1756909400213,1.6112,4440.8,4440.5,2.25195545]
[1756909400414,0.2966,4440.6,4440.2,3.988]
[1756909400736,0.2966,4440.6,4440.5,2.25199864]
[1756909401448,1.9078,4440.6,4440.5,2.25199864]
[1756909403458,0.2966,4440.6,4440.5,2.25199864]
[1756909403915,1.9078,4440.6,4440.1,0.1128]
[1756909404116,1.9078,4440.6,4439.2,3.986]
[1756909404117,1.8949,4440.5,4439.2,3.986]
[1756909404342,1.8949,4440.5,4439.8,2.35172408]
[1756909404546,1.6112,4440.5,4440.2,2.25214065]
[1756909404852,0.1128,4440.3,4440.1,2.25218952]
[1756909405015,0.1259,4440.2,4439.8,0.0994]
[1756909405216,2.0639,4440.1,4439.8,0.0994]
[1756909405412,0.4096,4439.9,4439.8,0.0994]
[1756909405844,2.0208,4439.9,4439.8,0.0994]
[1756909406758,2.3043,4439.9,4439.8,0.0994]
[1756909407469,11.54260297,4439.9,4439.8,0.0994]
[1756909409421,12.33460297,4439.9,4439.8,0.0994]
[1756909409759,11.54260297,4439.9,4439.8,0.0994]
[1756909412650,12.33460297,4439.9,4439.8,0.0994]
[1756909416030,12.33460297,4439.9,4439.8,0.1004]
[1756909416355,6.0443537,4439.8,4439.3,0.001]
[1756909416557,0.792,4439.6,4439.3,0.001]
[1756909416758,6.35415665,4439.4,4439.3,0.001]
[1756909417257,11.25085665,4439.4,4439.3,0.001]
[1756909417461,12.04285665,4439.4,4439.3,0.001]
[1756909417661,12.31375665,4439.4,4439.3,0.001]
[1756909418529,7.26685665,4439.4,4439.3,0.001]
[1756909418725,7.4064,4439.4,4439.3,0.001]
[1756909418956,9.34935665,4439.4,4439.3,0.001]
[1756909419532,0.1128,4439.4,4439.3,0.7672]
[1756909419731,7.0968,4439.4,4439.3,0.3043]
[1756909419946,7.0968,4439.4,4439.3,0.7672]
[1756909421065,7.0968,4439.4,4439.3,0.3043]
[1756909421269,9.34935665,4439.4,4439.3,0.001]
[1756909421562,7.0968,4439.4,4439.3,0.001]
[1756909421764,7.0968,4439.4,4439.3,0.3043]
[1756909421968,7.0968,4439.4,4439.3,0.7672]
[1756909422270,7.0958,4439.4,4439.3,2.3792]
[1756909422434,7.0958,4439.4,4439.3,0.7672]
[1756909423166,7.095,4439.4,4439.3,0.7672]
[1756909423666,7.095,4439.4,4439.3,2.3792]
[1756909424473,4.095,4439.4,4439.3,2.3792]
[1756909424672,13.52915665,4439.4,4439.3,0.001]
[1756909424875,18.12105665,4439.4,4439.3,0.001]
[1756909427844,18.91305665,4439.4,4439.3,0.001]
[1756909428063,19.35715665,4439.4,4439.3,0.001]
[1756909428966,12.19715665,4439.4,4439.3,0.001]
[1756909429552,11.92705665,4439.4,4439.3,0.001]
[1756909430253,9.23355665,4439.4,4439.3,0.001]
[1756909430581,10.96005665,4439.4,4439.3,0.001]
[1756909432085,10.96005665,4439.4,4439.3,0.3043]
[1756909432086,9.23355665,4439.4,4439.3,0.3043]
[1756909432382,6.98,4439.4,4439.3,0.7672]
[1756909432679,3.0,4439.4,4439.3,0.7672]
[1756909432846,6.98,4439.4,4439.3,2.3792]
[1756909433293,3.98,4439.4,4439.3,2.3792]
[1756909433657,3.98,4439.4,4439.3,4.63180739]
[1756909434410,0.67727658,4440.2,4439.3,3.06765631]
[1756909434411,1.732,4440.2,4439.3,3.06765631]
[1756909434591,3.98,4440.1,4440.0,2.25225225]
[1756909434770,0.70220166,4440.8,4440.0,2.25225225]
[1756909434771,3.979,4440.2,4440.1,2.25220152]
[1756909434970,3.979,4440.2,4440.1,4.63040034]
[1756909435278,3.979,4440.3,4440.2,2.25212726]
[1756909435597,3.979,4440.3,4440.2,4.63032726]
[1756909435805,4.0918,4440.3,4440.2,4.63032726]
[1756909436398,4.0918,4440.3,4440.2,0.7662]
[1756909436698,4.0918,4440.3,4440.2,3.0183508]
[1756909436867,4.0918,4440.3,4440.2,0.7662]
[1756909437068,0.1128,4440.3,4440.2,2.3782]
[1756909437268,4.0918,4440.3,4440.2,0.7662]
[1756909439106,4.0938,4440.3,4440.2,3.0183508]
[1756909439265,4.0938,4440.3,4440.2,4.6303508]
[1756909439470,4.0938,4440.3,4440.2,2.3782]
[1756909439791,4.0938,4440.3,4440.2,4.6303508]
[1756909440300,0.002,4440.3,4440.2,5.3186104]
[1756909442803,0.002,4440.3,4440.2,0.7662]
[1756909443014,0.002,4440.3,4439.8,0.1128]
[1756909443015,0.002,4440.3,4440.1,2.25218748]
[1756909443227,0.1128,4440.2,4440.0,2.2522503]
[1756909443512,0.1128,4440.2,4439.3,3.977]
[1756909443513,0.1128,4439.9,4439.8,2.2523537]
[1756909443679,3.978,4440.3,4439.8,2.2523537]
[1756909443680,0.002,4440.3,4440.2,2.2521508]
[1756909443883,0.002,4440.3,4440.2,2.5459508]
[1756909444083,0.002,4440.3,4440.2,4.4760508]
[1756909444816,0.002,4440.3,4440.2,3.0100508]
[1756909445608,0.002,4440.3,4440.2,4.4760508]
[1756909446012,0.002,4440.3,4440.2,3.0100508]
[1756909446315,0.002,4440.3,4440.2,4.4760508]
[1756909446685,0.002,4440.3,4440.2,3.0100508]
[1756909447414,0.002,4440.3,4439.2,0.4641]
[1756909447415,6.379739,4440.3,4439.2,0.4641]
[1756909447618,6.379739,4440.3,4439.3,2.25360153]
[1756909447918,0.1128,4439.4,4439.3,2.25360153]
[1756909448213,4.0868,4439.8,4439.7,2.25240444]
[1756909448413,0.1128,4439.8,4439.7,2.54620444]
[1756909448846,0.1128,4439.8,4439.7,2.25240444]
[1756909449023,0.1128,4439.8,4439.3,0.001]
[1756909449229,3.974,4439.7,4439.4,2.25253188]
[1756909449422,3.974,4439.7,4439.6,2.54625517]
[1756909449591,3.973,4439.8,4439.6,0.7579]
[1756909449794,0.1128,4439.9,4439.6,0.2938]
[1756909450024,0.1128,4439.9,4439.8,2.2523537]
[1756909450225,0.1128,4439.9,4439.8,2.5461537]
[1756909450405,0.1128,4439.9,4439.8,3.0102537]
[1756909451431,0.678339,4440.3,4440.2,2.2521508]
[1756909451733,0.678339,4440.3,4440.2,3.0100508]
[1756909452595,0.678339,4440.3,4440.2,2.5459508]
[1756909453334,0.678339,4440.3,4440.2,3.0100508]
[1756909453833,0.678339,4440.3,4440.0,2.25220576]
[1756909454033,0.678339,4440.3,4439.9,3.972]
[1756909454220,0.678339,4440.3,4440.2,2.5459508]
[1756909454535,0.678339,4440.3,4440.2,4.4760508]
[1756909455503,0.678339,4440.3,4440.2,3.0100508]
[1756909455832,0.678339,4440.3,4439.8,0.5769]
[1756909456130,2.273539,4440.3,4440.0,2.25224768]
[1756909456634,0.1128,4440.1,4439.7,0.4641]
[1756909456851,0.1128,4440.1,4440.0,0.2938]
[1756909457324,0.1128,4440.1,4440.0,2.54605225]
[1756909457731,0.1128,4440.1,4440.0,2.25225225]
[1756909458044,0.7899497,4440.1,4440.0,2.25225225]
[1756909458839,0.0012,4440.3,4440.2,2.2521508]
[1756909459041,0.67828093,4440.3,4440.2,2.2521508]
[1756909459224,0.67828093,4440.3,4440.2,3.0100508]
[1756909459540,0.0012,4440.3,4440.2,3.0100508]
[1756909459850,0.0012,4440.3,4440.2,4.6113723]
[1756909460050,0.0012,4440.3,4440.2,5.89045928]
[1756909460207,0.0012,4440.3,4440.2,6.01402407]
[1756909460617,0.0012,4440.3,4440.2,6.80602407]
[1756909461236,0.0012,4440.3,4440.2,10.77602407]
[1756909462355,0.0012,4440.3,4440.2,13.77602407]
[1756909463210,0.0012,4440.3,4440.2,13.77502407]
[1756909465963,0.002,4441.2,4440.8,0.792]
[1756909466256,0.002,4441.2,4441.1,2.3644944]
[1756909466462,0.002,4441.2,4441.1,6.6252944]
[1756909466743,0.002,4441.2,4441.1,7.21295919]
[1756909467119,0.002,4441.2,4441.1,6.74885919]
[1756909468042,0.002,4441.2,4441.1,6.45505919]
[1756909468253,0.002,4441.2,4441.1,6.45405919]
[1756909468420,1.7294,4441.2,4441.1,6.2176944]
[1756909469135,0.002,4441.2,4441.1,6.2176944]
[1756909471750,0.1342,4441.2,4441.1,2.2516944]
[1756909471952,1.6758,4441.2,4441.1,6.2166944]
[1756909472858,0.0012,4441.2,4441.1,2.9967944]
[1756909473156,0.0012,4441.2,4441.1,4.04213342]
[1756909473824,0.0012,4441.2,4441.1,8.13511703]
[1756909474157,0.002,4442.2,4441.1,8.13511703]
[1756909474158,0.002,4442.2,4442.1,2.2511875]
[1756909474468,0.002,4442.2,4442.1,7.9461875]
[1756909474755,0.002,4442.2,4442.1,14.14355417]
[1756909474953,0.002,4442.2,4442.1,15.78303541]
[1756909475319,0.002,4442.2,4442.1,11.02703541]
[1756909475523,0.002,4442.2,4442.1,9.49023541]
[1756909475724,0.002,4442.2,4442.1,13.45323541]
[1756909476258,0.002,4442.2,4442.1,2.2511875]
[1756909476259,0.1169,4442.2,4442.1,2.2511875]
[1756909476435,1.6593,4442.2,4441.9,3.963]
[1756909476634,0.1169,4442.2,4442.1,2.2511875]
[1756909476958,0.002,4442.2,4442.1,6.9592875]
[1756909477632,0.002,4442.2,4442.1,2.2511875]
[1756909477962,0.002,4442.2,4442.1,6.2131875]
[1756909480058,0.002,4442.2,4442.1,2.2511875]
[1756909480683,0.002,4442.2,4442.1,6.2121875]
[1756909481256,1.6593,4442.2,4442.1,6.2121875]
[1756909482859,0.1169,4442.2,4442.1,6.2121875]
[1756909483543,1.6593,4442.2,4442.1,6.2111875]
[1756909484064,1.6593,4442.2,4441.8,0.1128]
[1756909484363,0.1128,4441.9,4441.4,3.96]
[1756909484528,0.1128,4441.9,4441.8,2.25133954]
[1756909484724,0.4636,4442.1,4441.8,2.25133954]
[1756909484928,0.2312,4441.9,4441.8,2.25133954]
[1756909485124,1.7736,4441.9,4441.4,6.21150279]
[1756909485347,1.5424,4441.8,4441.6,2.25140748]
[1756909485529,1.5424,4441.8,4441.7,2.25139023]
[1756909485725,1.6608,4441.8,4441.7,2.25139023]
[1756909485941,1.7736,4441.8,4441.7,2.25139023]
[1756909486337,1.7736,4441.8,4441.5,3.96]
[1756909486547,1.5424,4441.7,4441.6,2.25141167]
[1756909486765,0.1128,4441.8,4441.7,2.25139023]
[1756909486966,1.6552,4441.8,4441.7,2.25139023]
[1756909487154,1.7701,4441.8,4441.7,2.25139023]
[1756909487862,1.7701,4441.8,4441.5,6.21048769]
[1756909488067,1.5424,4441.7,4441.6,2.25142175]
[1756909488360,1.6608,4441.7,4441.5,3.958]
[1756909488563,1.5424,4441.6,4441.4,3.958]
[1756909488867,0.1184,4441.5,4441.2,1.731]
[1756909489038,1.6608,4441.5,4441.4,2.2515423]
[1756909489850,0.1184,4441.5,4441.4,2.2515423]
[1756909490138,0.1128,4441.8,4441.6,2.25143681]
[1756909490668,1.6608,4441.7,4441.5,2.25147974]
[1756909490864,1.6608,4441.7,4441.3,3.958]
[1756909491237,1.6608,4441.7,4441.4,2.2515423]
[1756909491569,1.6608,4441.7,4441.6,2.25144092]
[1756909492066,0.1128,4441.8,4441.7,2.25139023]
[1756909492278,0.1149,4441.5,4441.2,1.731]
[1756909492460,1.5424,4441.4,4441.2,6.20859546]
[1756909492663,1.5424,4441.4,4441.3,2.251593]
[1756909492969,0.1128,4441.5,4441.4,2.2515423]
[1756909493465,0.2277,4441.5,4441.4,2.2515423]
[1756909493781,1.7701,4441.5,4441.3,2.25155793]
[1756909494280,1.7701,4441.5,4441.2,6.2086409]
[1756909494573,0.2277,4441.5,4441.4,2.2515423]
[1756909494739,0.1128,4441.5,4441.4,2.5641423]
[1756909494939,0.002,4442.2,4441.8,2.25132754]
[1756909495182,0.1128,4441.8,4441.7,2.25137408]
[1756909495371,0.1128,4441.8,4441.7,2.56397408]
[1756909495752,0.1128,4441.8,4441.7,2.99647408]
[1756909495947,0.002,4442.2,4441.9,2.25126615]
[1756909496171,0.1128,4442.0,4441.9,2.25126615]
[1756909496354,0.002,4442.2,4442.1,2.2511875]
[1756909496548,0.002,4442.2,4441.9,0.7451]
[1756909496777,0.0012,4442.2,4442.1,2.2511875]
[1756909496979,0.0012,4442.2,4441.9,0.3126]
[1756909497192,0.0012,4442.2,4441.8,3.956]
[1756909497339,0.2892,4442.0,4441.8,2.25130291]
[1756909497544,0.402,4442.0,4441.8,2.25130291]
[1756909497852,0.402,4442.0,4441.9,2.25128886]
[1756909497853,1.9444,4442.0,4441.9,2.25128886]
[1756909498048,1.9444,4442.0,4441.7,2.25134241]
[1756909498372,1.9444,4442.0,4441.5,6.20647938]
[1756909498789,1.9444,4442.0,4440.8,0.025]
[1756909498790,3.0,4441.8,4440.8,0.025]
[1756909498957,6.04345984,4441.6,4440.8,0.025]
[1756909499273,5.5409958,4440.9,4440.8,0.025]
[1756909499481,11.2269958,4440.9,4440.8,0.025]
[1756909499691,13.0781958,4440.9,4440.8,0.025]
[1756909499871,10.5354,4440.9,4440.8,0.025]
[1756909500070,12.7871958,4440.9,4440.8,0.025]
[1756909500473,13.0781958,4440.9,4440.8,0.025]
[1756909500939,13.0771958,4440.9,4440.8,0.025]
[1756909501783,8.8321958,4440.9,4440.8,0.025]
[1756909502077,10.5344,4440.9,4440.8,0.025]
[1756909502280,8.9742,4440.9,4440.8,0.025]
[1756909502586,8.9742,4440.9,4440.8,0.3209]
[1756909502587,4.731,4440.9,4440.8,0.3209]
[1756909502877,1.731,4440.9,4440.8,0.3209]
[1756909503175,1.731,4440.9,4440.8,0.025]
[1756909503357,3.0,4441.0,4440.8,0.025]
[1756909503745,3.81173549,4441.5,4440.9,2.5476958]
[1756909503746,1.5602,4441.5,4440.9,2.5476958]
[1756909503979,3.0,4441.3,4440.9,0.2959]
[1756909504145,3.0,4441.3,4440.8,0.025]
[1756909504555,3.954,4441.3,4440.9,0.48421795]
[1756909504878,1.5602,4441.8,4440.8,0.025]
[1756909504879,5.25136042,4441.8,4440.8,0.025]
[1756909505444,3.0,4441.8,4440.8,2.73853629]
[1756909505661,3.0,4441.8,4440.8,0.025]
[1756909505903,1.5602,4441.7,4441.0,2.25170397]
[1756909506246,2.25136825,4441.8,4441.1,2.25168713]
[1756909506447,3.0,4441.9,4440.8,0.025]
[1756909506448,1.5602,4441.7,4440.8,0.025]
[1756909506648,2.25150782,4441.5,4440.8,0.025]
[1756909506946,4.62995564,4442.0,4441.6,0.2959]
[1756909507163,3.9542,4442.2,4441.7,0.4617]
[1756909507447,3.0,4442.1,4441.8,0.4617]
[1756909507646,3.9542,4442.2,4441.2,1.5173]
[1756909507847,0.0012,4442.2,4442.0,0.2959]
[1756909508777,0.1128,4442.1,4442.0,0.2959]
[1756909509289,0.0012,4442.2,4442.1,2.2511875]
[1756909509447,0.0012,4442.2,4442.0,0.2959]
[1756909509782,0.1128,4442.1,4441.4,0.1128]
[1756909509969,0.1128,4442.1,4442.0,2.54713818]
[1756909510286,0.0012,4442.2,4442.1,2.2511875]
[1756909510485,0.0012,4442.2,4442.1,4.2301875]
[1756909510782,0.0012,4442.2,4442.1,3.0087875]
[1756909511155,0.0012,4442.2,4442.1,3.03129937]
[1756909511388,0.0012,4442.2,4442.1,5.16714363]
[1756909512385,0.0012,4442.2,4442.1,6.08248802]
[1756909513258,0.0012,4442.2,4442.1,6.25158038]
[1756909514064,0.0012,4442.2,4442.1,9.25158038]
[1756909514273,0.0012,4442.2,4442.1,13.20158038]
[1756909514855,1e-08,4442.3,4442.2,5.25113682]
[1756909515060,1e-08,4442.3,4442.2,9.42387912]
[1756909515289,1e-08,4442.3,4442.2,9.71977912]
[1756909515591,1e-08,4442.3,4442.2,10.51177912]
[1756909515892,0.002,4443.1,4443.0,2.25073148]
[1756909516095,0.002,4443.1,4443.0,8.94880463]
[1756909516267,0.002,4443.1,4443.0,11.45984902]
[1756909516589,0.002,4443.1,4443.0,7.50984902]
[1756909516890,0.002,4443.1,4443.0,10.54350463]
[1756909518296,0.002,4443.1,4443.0,6.59450463]
[1756909518484,0.002,4443.1,4443.0,9.02520463]
[1756909518687,0.002,4443.1,4443.0,4.31960463]
[1756909518865,0.002,4443.1,4443.0,8.33843148]
[1756909519200,0.002,4443.1,4443.0,8.80013148]
[1756909519509,0.002,4443.1,4443.0,10.31643148]
[1756909519663,0.002,4443.1,4443.0,8.79913148]
[1756909520067,0.002,4443.1,4443.0,4.85213148]
[1756909520294,0.002,4443.1,4443.0,11.02672498]
[1756909520484,0.002,4443.1,4443.0,9.50942498]
[1756909520890,0.0012,4443.1,4443.0,9.50942498]
[1756909522695,0.0012,4443.1,4443.0,5.56242498]
[1756909522891,0.0012,4443.1,4443.0,11.02572498]
[1756909523672,0.0012,4443.1,4443.0,11.81772498]
[1756909524601,0.0012,4443.1,4443.0,7.87172498]
[1756909524770,0.0012,4443.1,4443.0,11.81772498]
[1756909527074,0.0012,4443.1,4443.0,10.30042498]
[1756909527413,0.0012,4443.1,4443.0,14.81772498]
[1756909527732,0.0012,4443.1,4443.0,14.94042435]
[1756909527882,2.87319437,4444.0,4443.7,3.04237693]
[1756909528208,1e-08,4444.0,4443.9,6.33817565]
[1756909528377,1e-08,4444.0,4443.9,10.04717565]
[1756909528577,0.00200001,4444.0,4443.9,10.04717565]
[1756909528777,1.76268366,4445.4,4443.9,10.04717565]
[1756909528778,0.20248366,4445.4,4444.7,3.04187063]
[1756909529000,0.025,4445.8,4445.7,2.24936455]
[1756909529315,5.409,4448.4,4445.7,2.24936455]
[1756909529316,1.91296648,4449.0,4447.7,2.24835308]
[1756909529614,0.025,4450.8,4447.7,12.12205308]
[1756909529615,1e-08,4447.8,4447.7,12.12205308]
[1756909529817,1e-08,4447.8,4447.7,14.19782624]
[1756909529974,1.5602,4449.7,4448.7,3.03984768]
[1756909530176,1.5602,4449.7,4448.7,8.82484768]
[1756909530390,1.606,4450.2,4448.7,9.57174768]
[1756909530708,1.606,4450.2,4448.7,9.73959321]
[1756909530889,1.606,4450.2,4449.7,2.24734251]
[1756909531089,1.494,4450.2,4449.7,6.30234251]
[1756909531388,1.519,4450.8,4449.7,9.32949593]
[1756909531591,0.025,4450.8,4449.7,10.38445342]
[1756909531791,0.025,4450.8,4450.7,2.24683757]
[1756909531990,0.025,4450.8,4450.7,11.71083757]
[1756909532192,0.025,4451.8,4450.7,11.71083757]
[1756909532195,0.025,4451.8,4450.7,10.928]
[1756909532521,0.025,4451.8,4451.7,2.24633286]
[1756909532691,0.025,4451.8,4451.7,6.29933286]
[1756909534321,0.025,4451.8,4451.7,3.941]
[1756909534322,2.0994,4451.8,4451.7,3.941]
[1756909534616,2.0994,4451.8,4451.7,3.94]
[1756909534919,1.519,4451.8,4451.7,3.94]
[1756909535089,0.025,4451.8,4451.7,6.7811972]
[1756909535284,0.025,4451.8,4451.7,6.8921972]
[1756909535482,0.025,4451.8,4451.7,0.112]
[1756909535681,0.025,4451.8,4451.7,6.29733286]
[1756909535884,1.6497,4451.8,4451.7,0.112]
[1756909536388,0.67517461,4454.0,4453.7,2.24532411]
[1756909536586,0.025,4454.8,4453.7,8.65922411]
[1756909536892,0.025,4454.8,4453.7,8.27346739]
[1756909537108,1e-08,4453.8,4453.7,14.51856739]
[1756909537415,1e-08,4453.8,4453.7,13.02246739]
[1756909537619,1e-08,4453.8,4453.7,14.53156739]
[1756909537788,1e-08,4453.8,4453.7,10.57456739]
[1756909537989,1.79960001,4453.8,4452.6,3.957]
[1756909538203,1.49400001,4453.8,4452.8,0.792]
[1756909538391,1e-08,4453.8,4453.2,0.792]
[1756909538591,1e-08,4453.8,4453.1,1.728]
[1756909538901,1e-08,4453.8,4453.7,2.24532411]
[1756909539107,1e-08,4453.8,4453.7,6.21932411]
[1756909539324,1e-08,4453.8,4453.7,2.54762411]
[1756909539494,1e-08,4453.8,4453.7,6.22032411]
[1756909539701,1e-08,4454.8,4454.7,6.03682007]
[1756909539902,1e-08,4454.8,4454.7,12.49672007]
[1756909540104,1e-08,4454.8,4454.7,16.83273735]
[1756909540319,1.519,4456.8,4456.2,2.24406444]
[1756909540524,0.025,4456.8,4456.2,7.96406444]
[1756909540703,0.025,4456.8,4456.2,3.97206444]
[1756909540888,1.494,4456.7,4456.2,7.96306444]
[1756909541088,0.025,4456.8,4456.2,7.96306444]
[1756909541326,1e-08,4456.8,4456.7,3.03581268]
[1756909541523,1e-08,4456.8,4456.7,6.25581268]
[1756909542226,1e-08,4456.8,4456.5,2.24389325]
[1756909542227,1e-08,4456.8,4456.2,1.89652362]
[1756909542424,1e-08,4456.8,4456.3,4.011]
[1756909542425,1.494,4456.7,4456.3,4.011]
[1756909542588,1e-08,4456.8,4456.3,4.011]
[1756909542788,1.494,4456.7,4456.4,4.01]
[1756909543013,1e-08,4456.8,4456.4,4.01]
[1756909543215,1e-08,4456.8,4456.7,2.24381268]
[1756909543426,1e-08,4456.8,4456.7,7.0752508]
[1756909543602,1e-08,4456.8,4456.7,7.49741268]
[1756909543805,1e-08,4456.8,4456.7,3.71016774]
[1756909544012,1e-08,4456.8,4456.7,7.72916774]
[1756909544333,1.49400001,4456.8,4456.2,1.89652362]
[1756909544505,1.49400001,4456.8,4456.7,2.24381268]
[1756909544904,1.94510001,4456.8,4456.2,1.89652362]
[1756909545103,1.94510001,4456.8,4456.3,4.017]
[1756909545340,1.94510001,4456.8,4456.2,1.89652362]
[1756909545341,1.9443,4456.7,4456.2,1.89652362]
[1756909545546,1e-08,4456.8,4456.3,4.017]
[1756909545837,0.4511,4456.6,4456.3,4.017]
[1756909546005,0.002,4456.7,4456.2,1.728]
[1756909546208,0.4511,4456.5,4455.7,2.2442708]
[1756909546422,0.4511,4456.5,4455.8,6.25923767]
[1756909546636,0.002,4456.7,4456.0,2.24416517]
[1756909546930,0.114,4456.7,4456.1,2.35611049]
[1756909547132,0.114,4456.7,4456.1,0.112]
[1756909547333,1.608,4456.7,4456.2,4.016]
[1756909547510,1.9451,4456.6,4456.1,0.112]
[1756909547848,1.9451,4456.6,4455.4,1.89154229]
[1756909547849,0.112,4456.3,4455.4,1.89154229]
[1756909548010,3.0,4456.5,4455.8,0.112]
[1756909548210,0.112,4456.5,4456.4,2.24396373]
[1756909548441,0.002,4456.7,4456.6,2.24386303]
[1756909549546,1.496,4456.7,4456.6,2.24386303]
[1756909549713,1.496,4456.7,4456.6,4.015]
[1756909550161,0.002,4456.7,4456.6,2.24386303]
[1756909550314,0.002,4456.7,4456.6,4.014]
[1756909550665,1.9471,4456.7,4456.4,1.726]
[1756909550866,1.494,4456.6,4456.5,2.24391338]
[1756909551144,0.002,4456.7,4456.4,1.726]
[1756909551365,1.494,4456.6,4456.4,5.738]
[1756909551515,0.002,4456.7,4456.4,5.738]
[1756909551712,0.002,4456.7,4456.2,0.112]
[1756909551713,2.24401409,4456.3,4456.2,0.112]
[1756909551919,2.24430686,4455.8,4453.7,0.211]
[1756909552224,3.0,4456.2,4454.3,0.825]
[1756909552431,4.055,4456.6,4454.9,1.8826]
[1756909552760,1.494,4456.1,4455.6,2.24435532]
[1756909552913,1.494,4456.1,4454.9,4.12731638]
[1756909552914,1.494,4456.0,4455.9,2.24421553]
[1756909553115,1.494,4456.0,4455.1,2.24461852]
[1756909553116,1.494,4456.6,4455.4,4.056]
[1756909553317,0.002,4456.7,4455.8,2.24423271]
[1756909553548,0.002,4456.7,4456.6,2.24386303]
[1756909553747,0.002,4456.7,4456.5,2.24390819]
[1756909554147,2.0726,4456.6,4455.9,2.24416606]
[1756909554437,1.6247,4456.6,4456.2,2.24402163]
[1756909554626,1.6247,4456.6,4455.5,4.057]
[1756909554627,1.6247,4456.6,4455.7,2.24426793]
[1756909554837,1.9419,4456.5,4455.0,4.056]
[1756909555050,2.24410559,4456.2,4455.2,2.24454598]
[1756909555241,1.494,4456.1,4454.9,2.24471187]
[1756909555442,1.9451,4456.1,4455.0,2.2446665]
[1756909555763,2.24421553,4455.9,4454.9,2.24471077]
[1756909555960,1.494,4456.0,4454.8,0.19188145]
[1756909555961,2.24433479,4455.7,4454.8,0.025]
[1756909556151,2.24437623,4455.6,4454.8,0.025]
[1756909556342,1.494,4455.6,4454.8,0.025]
[1756909556863,0.4511,4455.5,4454.8,0.025]
[1756909557185,2.24471929,4454.9,4454.8,0.025]
[1756909557460,3.0,4454.9,4454.8,0.025]
[1756909557678,4.494,4454.9,4454.8,0.025]
[1756909557828,4.9451,4454.9,4454.8,0.025]
[1756909558229,4.494,4454.9,4454.8,0.025]
[1756909558855,5.0726,4454.9,4454.8,0.025]
[1756909559460,7.31731929,4454.9,4454.8,0.025]
[1756909559663,11.37331929,4454.9,4454.8,0.025]
[1756909560231,26.02513161,4454.9,4454.8,0.025]
[1756909560432,26.81713161,4454.9,4454.8,0.025]